[Event "Titled Tuesday Blitz May 24 Early 2022"]
[White "Ovezdurdyyeva, Jemal"]
[Black "Begunov, Konstantin"]
[WhiteFideId "14001888"]
[BlackFideId "4118510"]
[WhiteElo "1946"]
[BlackElo "2262"]
[Result "0-1"]
[Round "11"]
[TimeControl "180+1"]
[Date "2022.05.25"]
[WhiteClock "0:00:01"]
[BlackClock "0:00:09"]

1. e4 {[%clk 0:03:00]}  c5 {[%clk 0:02:59]} 2. Nf3 {[%clk 0:02:59]}  d6 {[%clk 0:02:59]} 3. d4 {[%clk 0:02:59]}  cxd4 {[%clk 0:03:00]} 4. Nxd4 {[%clk 0:02:59]}  Nf6 {[%clk 0:03:01]} 5. Nc3 {[%clk 0:02:59]}  a6 {[%clk 0:03:01]} 6. Bc4 {[%clk 0:02:58]}  e6 {[%clk 0:03:01]} 7. O-O {[%clk 0:02:56]}  Nbd7 {[%clk 0:03:01]} 8. Kh1 {[%clk 0:02:37]}  Nc5 {[%clk 0:03:00]} 9. Qe2 {[%clk 0:02:33]}  b5 {[%clk 0:02:51]} 10. Bb3 {[%clk 0:02:19]}  Bb7 {[%clk 0:02:46]} 11. f3 {[%clk 0:02:06]}  Be7 {[%clk 0:02:45]} 12. Be3 {[%clk 0:01:57]}  O-O {[%clk 0:02:44]} 13. Rad1 {[%clk 0:01:55]}  Qc7 {[%clk 0:02:44]} 14. g4 {[%clk 0:01:45]}  b4 {[%clk 0:02:30]} 15. Na4 {[%clk 0:01:34]}  d5 {[%clk 0:02:22]} 16. g5 {[%clk 0:01:27]}  Nfd7 {[%clk 0:01:59]} 17. exd5 {[%clk 0:01:02]}  Nxb3 {[%clk 0:01:58]} 18. d6 {[%clk 0:00:59]}  Nxd4 {[%clk 0:01:49]} 19. dxc7 {[%clk 0:00:57]}  Nxe2 {[%clk 0:01:48]} 20. Rxd7 {[%clk 0:00:57]}  Rfe8 {[%clk 0:01:30]} 21. Nb6 {[%clk 0:00:57]}  Kf8 {[%clk 0:00:26]} 22. Nxa8 {[%clk 0:00:44]}  Bxa8 {[%clk 0:00:27]} 23. Kg2 {[%clk 0:00:40]}  e5 {[%clk 0:00:25]} 24. Re1 {[%clk 0:00:37]}  Bc6 {[%clk 0:00:17]} 25. Rd3 {[%clk 0:00:20]}  Rc8 {[%clk 0:00:16]} 26. Rxe2 {[%clk 0:00:19]}  Rxc7 {[%clk 0:00:16]} 27. c4 {[%clk 0:00:18]}  e4 {[%clk 0:00:16]} 28. Rdd2 {[%clk 0:00:14]}  exf3+ {[%clk 0:00:16]} 29. Kf2 {[%clk 0:00:15]}  fxe2 {[%clk 0:00:16]} 30. Kxe2 {[%clk 0:00:16]}  Rd7 {[%clk 0:00:15]} 31. Rc2 {[%clk 0:00:13]}  a5 {[%clk 0:00:15]} 32. b3 {[%clk 0:00:13]}  Be4 {[%clk 0:00:15]} 33. Rc1 {[%clk 0:00:13]}  Ke8 {[%clk 0:00:14]} 34. h4 {[%clk 0:00:13]}  Bg6 {[%clk 0:00:13]} 35. c5 {[%clk 0:00:12]}  Bh5+ {[%clk 0:00:14]} 36. Kf2 {[%clk 0:00:12]}  Rc7 {[%clk 0:00:15]} 37. c6 {[%clk 0:00:12]}  Bg4 {[%clk 0:00:14]} 38. Bb6 {[%clk 0:00:12]}  Rc8 {[%clk 0:00:14]} 39. Bxa5 {[%clk 0:00:12]}  Be6 {[%clk 0:00:12]} 40. Ke3 {[%clk 0:00:11]}  Bd5 {[%clk 0:00:12]} 41. c7 {[%clk 0:00:10]}  Kd7 {[%clk 0:00:12]} 42. Kd4 {[%clk 0:00:10]}  Bc6 {[%clk 0:00:12]} 43. Kc4 {[%clk 0:00:09]}  Bd6 {[%clk 0:00:12]} 44. Rd1 {[%clk 0:00:08]}  Ke6 {[%clk 0:00:10]} 45. Bxb4 {[%clk 0:00:06]}  Bxc7 {[%clk 0:00:10]} 46. a4 {[%clk 0:00:04]}  Be5 {[%clk 0:00:10]} 47. Bc5 {[%clk 0:00:02]}  Bd5+ {[%clk 0:00:10]} 48. Kb4 {[%clk 0:00:01]}  Rb8+ {[%clk 0:00:10]} 49. Ka5 {[%clk 0:00:01]}  Rxb3 {[%clk 0:00:09]} 50. Bb6 {[%clk 0:00:01]}  Bc3+ {[%clk 0:00:09]} 0-1


[Site "https://www.chess.com"]

[Event "Titled Tuesday Blitz May 24 Early 2022"]
[White "Pakleza, Zbigniew"]
[Black "Gabrielian, Artur"]
[WhiteFideId "1119290"]
[BlackFideId "4131002"]
[WhiteElo "2467"]
[BlackElo "2440"]
[Result "1-0"]
[Round "11"]
[TimeControl "180+1"]
[Date "2022.05.24"]
[WhiteClock "0:00:04"]
[BlackClock "0:00:07"]

1. d4 {[%clk 0:03:00]}  Nf6 {[%clk 0:02:59]} 2. Nf3 {[%clk 0:03:00]}  g6 {[%clk 0:02:57]} 3. Bf4 {[%clk 0:03:00]}  Bg7 {[%clk 0:02:57]} 4. e3 {[%clk 0:03:01]}  O-O {[%clk 0:02:57]} 5. Be2 {[%clk 0:03:01]}  d6 {[%clk 0:02:57]} 6. h3 {[%clk 0:03:01]}  b6 {[%clk 0:02:57]} 7. O-O {[%clk 0:03:01]}  Bb7 {[%clk 0:02:57]} 8. c3 {[%clk 0:03:01]}  Nc6 {[%clk 0:02:55]} 9. Nbd2 {[%clk 0:03:01]}  Re8 {[%clk 0:02:55]} 10. Bh2 {[%clk 0:03:02]}  e5 {[%clk 0:02:54]} 11. a4 {[%clk 0:03:01]}  exd4 {[%clk 0:02:53]} 12. exd4 {[%clk 0:02:51]}  a6 {[%clk 0:02:53]} 13. Re1 {[%clk 0:02:50]}  Ne7 {[%clk 0:02:53]} 14. Bc4 {[%clk 0:02:45]}  Ned5 {[%clk 0:02:53]} 15. Qb3 {[%clk 0:02:44]}  Qd7 {[%clk 0:02:53]} 16. Bd3 {[%clk 0:02:25]}  Bh6 {[%clk 0:02:51]} 17. a5 {[%clk 0:02:18]}  b5 {[%clk 0:02:40]} 18. c4 {[%clk 0:02:17]}  bxc4 {[%clk 0:02:28]} 19. Bxc4 {[%clk 0:02:18]}  Bc6 {[%clk 0:02:23]} 20. Rxe8+ {[%clk 0:02:13]}  Qxe8 {[%clk 0:02:20]} 21. Re1 {[%clk 0:02:07]}  Qd7 {[%clk 0:02:20]} 22. Bg3 {[%clk 0:01:49]}  Kg7 {[%clk 0:02:08]} 23. Bh4 {[%clk 0:01:38]}  Bf4 {[%clk 0:01:53]} 24. Ne4 {[%clk 0:01:16]}  Nxe4 {[%clk 0:01:30]} 25. Rxe4 {[%clk 0:01:17]}  Qf5 {[%clk 0:01:22]} 26. Bd3 {[%clk 0:01:17]}  Qd7 {[%clk 0:01:09]} 27. Bc4 {[%clk 0:00:57]}  Qf5 {[%clk 0:01:08]} 28. Bd3 {[%clk 0:00:57]}  Qd7 {[%clk 0:01:08]} 29. Re1 {[%clk 0:00:40]}  Bh6 {[%clk 0:01:01]} 30. Bc4 {[%clk 0:00:31]}  Qf5 {[%clk 0:00:56]} 31. g4 {[%clk 0:00:27]}  Qc8 {[%clk 0:00:22]} 32. Bxd5 {[%clk 0:00:23]}  Rb8 {[%clk 0:00:22]} 33. Qc4 {[%clk 0:00:21]}  Bb5 {[%clk 0:00:16]} 34. Qc2 {[%clk 0:00:18]}  Bf4 {[%clk 0:00:16]} 35. Bg5 {[%clk 0:00:15]}  c6 {[%clk 0:00:11]} 36. Ba2 {[%clk 0:00:12]}  Bxg5 {[%clk 0:00:11]} 37. Nxg5 {[%clk 0:00:13]}  d5 {[%clk 0:00:11]} 38. Qd2 {[%clk 0:00:07]}  Qd8 {[%clk 0:00:11]} 39. Qf4 {[%clk 0:00:07]}  Rb7 {[%clk 0:00:11]} 40. Qxf7+ {[%clk 0:00:05]}  Rxf7 {[%clk 0:00:10]} 41. Ne6+ {[%clk 0:00:06]}  Kf6 {[%clk 0:00:10]} 42. Nxd8 {[%clk 0:00:07]}  Rd7 {[%clk 0:00:07]} 43. Re6+ {[%clk 0:00:04]}  Kg5 {[%clk 0:00:07]} 44. Re8 {[%clk 0:00:04]}  c5 {[%clk 0:00:07]} 45. dxc5 {[%clk 0:00:03]}  d4 {[%clk 0:00:07]} 46. Bb1 {[%clk 0:00:03]}  d3 {[%clk 0:00:07]} 47. Ne6+ {[%clk 0:00:04]}  Kh4 {[%clk 0:00:07]} 48. Bxd3 {[%clk 0:00:04]}  Rxd3 {[%clk 0:00:07]} 49. Re7 {[%clk 0:00:05]}  Bc6 {[%clk 0:00:07]} 50. Rxh7# {[%clk 0:00:04]} 1-0


[Site "https://www.chess.com"]

[Event "Titled Tuesday Blitz May 24 Early 2022"]
[White "Papasimakopoulos, Alexandros"]
[Black "Borawski, Jakub"]
[WhiteFideId "4244125"]
[BlackFideId "1143000"]
[WhiteElo "2340"]
[BlackElo "2020"]
[Result "1-0"]
[Round "11"]
[TimeControl "180+1"]
[Date "2022.05.25"]
[WhiteClock "0:00:56"]
[BlackClock "0:00:02"]

1. d4 {[%clk 0:03:00]}  Nf6 {[%clk 0:02:59]} 2. c4 {[%clk 0:03:00]}  e6 {[%clk 0:03:00]} 3. Nc3 {[%clk 0:03:00]}  Bb4 {[%clk 0:03:00]} 4. Qc2 {[%clk 0:03:01]}  b6 {[%clk 0:02:59]} 5. a3 {[%clk 0:03:01]}  Bxc3+ {[%clk 0:03:00]} 6. Qxc3 {[%clk 0:03:02]}  Bb7 {[%clk 0:03:00]} 7. f3 {[%clk 0:03:02]}  d6 {[%clk 0:03:00]} 8. e4 {[%clk 0:03:02]}  Nbd7 {[%clk 0:03:01]} 9. Be3 {[%clk 0:03:03]}  c5 {[%clk 0:03:00]} 10. d5 {[%clk 0:03:02]}  O-O {[%clk 0:03:00]} 11. Bd3 {[%clk 0:03:02]}  exd5 {[%clk 0:02:56]} 12. cxd5 {[%clk 0:03:02]}  a6 {[%clk 0:02:56]} 13. a4 {[%clk 0:03:00]}  Re8 {[%clk 0:02:53]} 14. Qd2 {[%clk 0:02:57]}  Ne5 {[%clk 0:02:47]} 15. Ne2 {[%clk 0:02:55]}  Nxd3+ {[%clk 0:02:42]} 16. Qxd3 {[%clk 0:02:55]}  b5 {[%clk 0:02:42]} 17. O-O {[%clk 0:02:48]}  b4 {[%clk 0:02:35]} 18. a5 {[%clk 0:02:46]}  Qe7 {[%clk 0:02:30]} 19. Ng3 {[%clk 0:02:28]}  Nxd5 {[%clk 0:02:19]} 20. Nf5 {[%clk 0:02:27]}  Qe5 {[%clk 0:02:05]} 21. exd5 {[%clk 0:02:25]}  c4 {[%clk 0:01:56]} 22. Qd2 {[%clk 0:02:11]}  Qxf5 {[%clk 0:01:55]} 23. Bf2 {[%clk 0:02:08]}  b3 {[%clk 0:01:45]} 24. Rfd1 {[%clk 0:02:02]}  Re5 {[%clk 0:01:39]} 25. Qb4 {[%clk 0:02:00]}  Bxd5 {[%clk 0:01:35]} 26. Qxd6 {[%clk 0:02:00]}  Qe6 {[%clk 0:01:02]} 27. Bc5 {[%clk 0:01:36]}  h5 {[%clk 0:00:51]} 28. Bb4 {[%clk 0:01:27]}  Re8 {[%clk 0:00:36]} 29. Qxe6 {[%clk 0:01:26]}  Bxe6 {[%clk 0:00:35]} 30. Rd6 {[%clk 0:01:23]}  Bc8 {[%clk 0:00:25]} 31. Rad1 {[%clk 0:01:12]}  h4 {[%clk 0:00:22]} 32. h3 {[%clk 0:01:12]}  Re2 {[%clk 0:00:18]} 33. Bc3 {[%clk 0:01:11]}  f6 {[%clk 0:00:16]} 34. Rd8 {[%clk 0:01:11]}  Kf7 {[%clk 0:00:14]} 35. Rxe8 {[%clk 0:01:11]}  Kxe8 {[%clk 0:00:11]} 36. Rd4 {[%clk 0:01:12]}  Rc2 {[%clk 0:00:05]} 37. Rxc4 {[%clk 0:01:10]}  Kd7 {[%clk 0:00:05]} 38. Rxh4 {[%clk 0:01:03]}  Bb7 {[%clk 0:00:04]} 39. Rd4+ {[%clk 0:01:01]}  Ke6 {[%clk 0:00:02]} 40. Rb4 {[%clk 0:01:00]}  Bd5 {[%clk 0:00:02]} 41. Rb6+ {[%clk 0:01:01]}  Kf5 {[%clk 0:00:02]} 42. Rxa6 {[%clk 0:01:01]}  Kf4 {[%clk 0:00:02]} 43. Ra7 {[%clk 0:00:56]} 1-0


[Site "https://www.chess.com"]

[Event "Titled Tuesday Blitz May 24 Early 2022"]
[White "Paravyan, David"]
[Black "Nakamura, Hikaru"]
[WhiteFideId "4194985"]
[BlackFideId "2016192"]
[WhiteElo "2569"]
[BlackElo "2850"]
[Result "1-0"]
[Round "11"]
[TimeControl "180+1"]
[Date "2022.05.24"]
[WhiteClock "0:00:54"]
[BlackClock "0:00:08"]

1. e4 {[%clk 0:03:00]}  Nf6 {[%clk 0:02:56]} 2. e5 {[%clk 0:03:00]}  Nd5 {[%clk 0:02:56]} 3. d4 {[%clk 0:03:01]}  d6 {[%clk 0:02:55]} 4. c4 {[%clk 0:03:02]}  Nb6 {[%clk 0:02:56]} 5. f4 {[%clk 0:03:00]}  Bf5 {[%clk 0:02:54]} 6. Nc3 {[%clk 0:02:58]}  dxe5 {[%clk 0:02:54]} 7. fxe5 {[%clk 0:02:58]}  e6 {[%clk 0:02:54]} 8. Be3 {[%clk 0:02:57]}  Nc6 {[%clk 0:02:54]} 9. Nf3 {[%clk 0:02:56]}  Bg4 {[%clk 0:02:53]} 10. Be2 {[%clk 0:02:44]}  Bxf3 {[%clk 0:02:53]} 11. gxf3 {[%clk 0:02:45]}  Qh4+ {[%clk 0:02:53]} 12. Bf2 {[%clk 0:02:45]}  Qf4 {[%clk 0:02:53]} 13. c5 {[%clk 0:02:42]}  Nd5 {[%clk 0:02:53]} 14. Nxd5 {[%clk 0:02:42]}  exd5 {[%clk 0:02:53]} 15. Qd2 {[%clk 0:02:41]}  Qxd2+ {[%clk 0:02:53]} 16. Kxd2 {[%clk 0:02:41]}  f5 {[%clk 0:02:52]} 17. exf6 {[%clk 0:02:39]}  gxf6 {[%clk 0:02:50]} 18. Bd3 {[%clk 0:02:32]}  Kf7 {[%clk 0:02:37]} 19. Kc3 {[%clk 0:02:32]}  b6 {[%clk 0:02:35]} 20. b4 {[%clk 0:02:31]}  a5 {[%clk 0:02:30]} 21. a3 {[%clk 0:02:30]}  Bg7 {[%clk 0:02:24]} 22. Bb5 {[%clk 0:02:14]}  Nd8 {[%clk 0:01:59]} 23. Bg3 {[%clk 0:02:09]}  Ra7 {[%clk 0:01:43]} 24. Rhe1 {[%clk 0:02:04]}  h5 {[%clk 0:01:29]} 25. Bd7 {[%clk 0:01:53]}  h4 {[%clk 0:01:16]} 26. Bf4 {[%clk 0:01:53]}  c6 {[%clk 0:00:51]} 27. Bf5 {[%clk 0:01:53]}  b5 {[%clk 0:00:51]} 28. h3 {[%clk 0:01:48]}  Bh6 {[%clk 0:00:47]} 29. Bd6 {[%clk 0:01:42]}  Bf8 {[%clk 0:00:47]} 30. Bb8 {[%clk 0:01:40]}  Rb7 {[%clk 0:00:45]} 31. Bf4 {[%clk 0:01:39]}  Ra7 {[%clk 0:00:46]} 32. Kb3 {[%clk 0:01:35]}  Bh6 {[%clk 0:00:45]} 33. Bd6 {[%clk 0:01:32]}  Bf8 {[%clk 0:00:44]} 34. Bb8 {[%clk 0:01:32]}  Rb7 {[%clk 0:00:43]} 35. Bh2 {[%clk 0:01:31]}  Bh6 {[%clk 0:00:42]} 36. Re2 {[%clk 0:01:23]}  Ra7 {[%clk 0:00:27]} 37. Rae1 {[%clk 0:01:22]}  axb4 {[%clk 0:00:27]} 38. axb4 {[%clk 0:01:23]}  Rg8 {[%clk 0:00:28]} 39. Bb8 {[%clk 0:01:15]}  Rb7 {[%clk 0:00:26]} 40. Bd6 {[%clk 0:01:14]}  Bf8 {[%clk 0:00:25]} 41. Bf4 {[%clk 0:01:12]}  Re7 {[%clk 0:00:22]} 42. Rxe7+ {[%clk 0:01:00]}  Bxe7 {[%clk 0:00:23]} 43. Bg4 {[%clk 0:00:57]}  f5 {[%clk 0:00:16]} 44. Bh5+ {[%clk 0:00:55]}  Kf6 {[%clk 0:00:16]} 45. Be5+ {[%clk 0:00:54]}  Kg5 {[%clk 0:00:13]} 46. Rg1+ {[%clk 0:00:55]}  Kxh5 {[%clk 0:00:08]} 47. Rxg8 {[%clk 0:00:56]}  Kh6 {[%clk 0:00:08]} 48. Re8 {[%clk 0:00:54]} 1-0


[Site "https://www.chess.com"]

[Event "Titled Tuesday Blitz May 24 Early 2022"]
[White "Pesotskiy, Mikhail"]
[Black "Bas Mas, Jose Joaquin"]
[WhiteFideId "34164453"]
[BlackFideId "22219064"]
[WhiteElo "2010"]
[BlackElo "2233"]
[Result "1-0"]
[Round "11"]
[TimeControl "180+1"]
[Date "2022.05.25"]
[WhiteClock "0:00:04"]
[BlackClock "0:01:36"]

1. d4 {[%clk 0:03:00]}  f5 {[%clk 0:02:59]} 2. c4 {[%clk 0:03:01]}  Nf6 {[%clk 0:02:59]} 3. Nc3 {[%clk 0:02:58]}  e6 {[%clk 0:02:58]} 4. g3 {[%clk 0:02:54]}  Be7 {[%clk 0:02:57]} 5. Bg2 {[%clk 0:02:54]}  O-O {[%clk 0:02:57]} 6. Nf3 {[%clk 0:02:55]}  d6 {[%clk 0:02:56]} 7. O-O {[%clk 0:02:56]}  a5 {[%clk 0:02:57]} 8. Re1 {[%clk 0:02:55]}  Ne4 {[%clk 0:02:51]} 9. Qc2 {[%clk 0:02:54]}  Nxc3 {[%clk 0:02:47]} 10. bxc3 {[%clk 0:02:55]}  Nc6 {[%clk 0:02:46]} 11. e4 {[%clk 0:02:55]}  fxe4 {[%clk 0:02:46]} 12. Qxe4 {[%clk 0:02:56]}  d5 {[%clk 0:02:45]} 13. Qe2 {[%clk 0:02:51]}  Bf6 {[%clk 0:02:44]} 14. Bf4 {[%clk 0:02:46]}  Ra6 {[%clk 0:02:43]} 15. Ne5 {[%clk 0:02:34]}  Nxe5 {[%clk 0:02:34]} 16. Bxe5 {[%clk 0:02:35]}  c6 {[%clk 0:02:32]} 17. Bxf6 {[%clk 0:02:28]}  Qxf6 {[%clk 0:02:32]} 18. f4 {[%clk 0:02:28]}  Rb6 {[%clk 0:02:30]} 19. c5 {[%clk 0:02:27]}  Ra6 {[%clk 0:02:24]} 20. Rab1 {[%clk 0:02:27]}  a4 {[%clk 0:02:23]} 21. Rb4 {[%clk 0:02:25]}  a3 {[%clk 0:02:23]} 22. Reb1 {[%clk 0:02:25]}  g5 {[%clk 0:02:21]} 23. Rf1 {[%clk 0:02:23]}  Qg6 {[%clk 0:02:19]} 24. fxg5 {[%clk 0:02:20]}  Rxf1+ {[%clk 0:02:15]} 25. Bxf1 {[%clk 0:02:16]}  Qxg5 {[%clk 0:02:16]} 26. Rb1 {[%clk 0:01:47]}  Ra8 {[%clk 0:02:11]} 27. Bh3 {[%clk 0:01:40]}  Qg6 {[%clk 0:02:06]} 28. Re1 {[%clk 0:01:39]}  Kf7 {[%clk 0:02:06]} 29. Rf1+ {[%clk 0:01:37]}  Kg7 {[%clk 0:02:04]} 30. Qe5+ {[%clk 0:01:36]}  Kg8 {[%clk 0:02:04]} 31. Qd6 {[%clk 0:01:30]}  Qe8 {[%clk 0:01:59]} 32. Rf4 {[%clk 0:01:11]}  e5 {[%clk 0:01:56]} 33. Bxc8 {[%clk 0:00:40]}  exf4 {[%clk 0:01:54]} 34. Be6+ {[%clk 0:00:41]}  Kg7 {[%clk 0:01:48]} 35. Qe5+ {[%clk 0:00:40]}  Kh6 {[%clk 0:01:47]} 36. Qxf4+ {[%clk 0:00:36]}  Kg7 {[%clk 0:01:47]} 37. Qe5+ {[%clk 0:00:34]}  Kh6 {[%clk 0:01:47]} 38. Qf4+ {[%clk 0:00:08]}  Kh5 {[%clk 0:01:39]} 39. h4 {[%clk 0:00:05]}  Kg6 {[%clk 0:01:36]} 40. Qg5# {[%clk 0:00:04]} 1-0


[Site "https://www.chess.com"]

[Event "Titled Tuesday Blitz May 24 Early 2022"]
[White "Pham, Tran Gia Phuc"]
[Black "Turutin, Alexander"]
[WhiteFideId "12415669"]
[BlackFideId "4180623"]
[WhiteElo "1789"]
[BlackElo "2402"]
[Result "1-0"]
[Round "11"]
[TimeControl "180+1"]
[Date "2022.05.25"]
[WhiteClock "0:01:19"]
[BlackClock "0:00:15"]

1. e4 {[%clk 0:03:00]}  c6 {[%clk 0:02:55]} 2. d4 {[%clk 0:02:59]}  d5 {[%clk 0:02:56]} 3. f3 {[%clk 0:03:00]}  g6 {[%clk 0:02:46]} 4. Nc3 {[%clk 0:02:59]}  Bg7 {[%clk 0:02:45]} 5. e5 {[%clk 0:02:59]}  h5 {[%clk 0:02:43]} 6. Be3 {[%clk 0:02:56]}  Nh6 {[%clk 0:02:43]} 7. Qd2 {[%clk 0:02:55]}  Nf5 {[%clk 0:02:42]} 8. Bf2 {[%clk 0:02:55]}  Be6 {[%clk 0:01:55]} 9. Nh3 {[%clk 0:02:54]}  Bh6 {[%clk 0:01:54]} 10. Ng5 {[%clk 0:02:54]}  f6 {[%clk 0:01:52]} 11. exf6 {[%clk 0:02:49]}  exf6 {[%clk 0:01:53]} 12. Qe2 {[%clk 0:02:48]}  Bxg5 {[%clk 0:01:52]} 13. Qxe6+ {[%clk 0:02:48]}  Qe7 {[%clk 0:01:53]} 14. Qxe7+ {[%clk 0:02:48]}  Kxe7 {[%clk 0:01:54]} 15. Bd3 {[%clk 0:02:48]}  Ke6 {[%clk 0:01:17]} 16. h4 {[%clk 0:02:37]}  Bf4 {[%clk 0:01:10]} 17. g4 {[%clk 0:02:35]}  Ne7 {[%clk 0:01:07]} 18. Ne2 {[%clk 0:02:33]}  Bh6 {[%clk 0:01:01]} 19. Ng3 {[%clk 0:02:30]}  hxg4 {[%clk 0:01:01]} 20. fxg4 {[%clk 0:02:30]}  Nd7 {[%clk 0:01:00]} 21. O-O {[%clk 0:02:28]}  Rae8 {[%clk 0:00:38]} 22. Rae1+ {[%clk 0:02:09]}  Kf7 {[%clk 0:00:38]} 23. g5 {[%clk 0:02:09]}  Bg7 {[%clk 0:00:39]} 24. Be3 {[%clk 0:02:06]}  Rxh4 {[%clk 0:00:38]} 25. gxf6 {[%clk 0:02:04]}  Bxf6 {[%clk 0:00:39]} 26. Kg2 {[%clk 0:02:03]}  Kg7 {[%clk 0:00:38]} 27. c3 {[%clk 0:01:58]}  Reh8 {[%clk 0:00:39]} 28. Bg1 {[%clk 0:01:56]}  Rg4 {[%clk 0:00:38]} 29. Be2 {[%clk 0:01:52]}  Rgh4 {[%clk 0:00:36]} 30. Bd1 {[%clk 0:01:49]}  Nf8 {[%clk 0:00:36]} 31. a4 {[%clk 0:01:38]}  Ng8 {[%clk 0:00:35]} 32. Re8 {[%clk 0:01:32]}  Be7 {[%clk 0:00:26]} 33. Rb8 {[%clk 0:01:28]}  b6 {[%clk 0:00:20]} 34. Rb7 {[%clk 0:01:28]}  Rh3 {[%clk 0:00:17]} 35. Rxa7 {[%clk 0:01:24]}  Ne6 {[%clk 0:00:15]} 36. Bg4 {[%clk 0:01:19]} 1-0


[Site "https://www.chess.com"]

[Event "Titled Tuesday Blitz May 24 Early 2022"]
[White "Poltorak, Sebastian"]
[Black "Shipov, Sergei"]
[WhiteFideId "1199498"]
[BlackFideId "4113624"]
[WhiteElo "2066"]
[BlackElo "2799"]
[Result "0-1"]
[Round "11"]
[TimeControl "180+1"]
[Date "2022.05.24"]
[WhiteClock "0:00:04"]
[BlackClock "0:00:19"]

1. e4 {[%clk 0:03:00]}  e6 {[%clk 0:02:59]} 2. d4 {[%clk 0:02:58]}  d5 {[%clk 0:03:00]} 3. Bd3 {[%clk 0:02:58]}  dxe4 {[%clk 0:03:00]} 4. Bxe4 {[%clk 0:02:59]}  Nf6 {[%clk 0:03:00]} 5. Bf3 {[%clk 0:02:59]}  c5 {[%clk 0:03:01]} 6. Ne2 {[%clk 0:02:56]}  Nc6 {[%clk 0:03:01]} 7. Be3 {[%clk 0:02:56]}  cxd4 {[%clk 0:03:01]} 8. Nxd4 {[%clk 0:02:56]}  Ne5 {[%clk 0:03:01]} 9. Nd2 {[%clk 0:02:51]}  Nxf3+ {[%clk 0:02:52]} 10. Qxf3 {[%clk 0:02:49]}  a6 {[%clk 0:02:52]} 11. O-O-O {[%clk 0:02:48]}  Qd5 {[%clk 0:02:52]} 12. Qxd5 {[%clk 0:02:46]}  Nxd5 {[%clk 0:02:52]} 13. Rhe1 {[%clk 0:02:37]}  Be7 {[%clk 0:02:40]} 14. Kb1 {[%clk 0:02:22]}  f6 {[%clk 0:02:37]} 15. f4 {[%clk 0:02:09]}  Kf7 {[%clk 0:02:36]} 16. N2f3 {[%clk 0:02:00]}  h5 {[%clk 0:02:33]} 17. Bc1 {[%clk 0:01:57]}  Rd8 {[%clk 0:01:37]} 18. Re2 {[%clk 0:01:51]}  Bd6 {[%clk 0:01:23]} 19. g3 {[%clk 0:01:47]}  Bd7 {[%clk 0:01:05]} 20. Rde1 {[%clk 0:01:41]}  Re8 {[%clk 0:01:03]} 21. c4 {[%clk 0:01:29]}  Nb4 {[%clk 0:01:02]} 22. a3 {[%clk 0:01:16]}  Nc6 {[%clk 0:01:02]} 23. Be3 {[%clk 0:01:08]}  Na5 {[%clk 0:00:53]} 24. Nd2 {[%clk 0:00:54]}  Rac8 {[%clk 0:00:52]} 25. Rc1 {[%clk 0:00:52]}  b5 {[%clk 0:00:32]} 26. cxb5 {[%clk 0:00:44]}  Rxc1+ {[%clk 0:00:32]} 27. Kxc1 {[%clk 0:00:44]}  Rc8+ {[%clk 0:00:32]} 28. Kb1 {[%clk 0:00:42]}  axb5 {[%clk 0:00:32]} 29. b4 {[%clk 0:00:38]}  Nc4 {[%clk 0:00:31]} 30. Nxc4 {[%clk 0:00:37]}  Rxc4 {[%clk 0:00:32]} 31. Rc2 {[%clk 0:00:36]}  Rxc2 {[%clk 0:00:31]} 32. Kxc2 {[%clk 0:00:32]}  e5 {[%clk 0:00:32]} 33. Ne2 {[%clk 0:00:25]}  Ke6 {[%clk 0:00:29]} 34. Nc3 {[%clk 0:00:24]}  Kf5 {[%clk 0:00:27]} 35. fxe5 {[%clk 0:00:24]}  fxe5 {[%clk 0:00:27]} 36. Kb3 {[%clk 0:00:22]}  Kg4 {[%clk 0:00:23]} 37. a4 {[%clk 0:00:17]}  bxa4+ {[%clk 0:00:22]} 38. Nxa4 {[%clk 0:00:17]}  Kh3 {[%clk 0:00:22]} 39. Nb6 {[%clk 0:00:18]}  Be6+ {[%clk 0:00:22]} 40. Nc4 {[%clk 0:00:12]}  Kxh2 {[%clk 0:00:21]} 41. Kc3 {[%clk 0:00:11]}  Bb8 {[%clk 0:00:21]} 42. b5 {[%clk 0:00:09]}  Kxg3 {[%clk 0:00:20]} 43. Na5 {[%clk 0:00:09]}  h4 {[%clk 0:00:20]} 44. Nc6 {[%clk 0:00:10]}  Bd6 {[%clk 0:00:20]} 45. b6 {[%clk 0:00:10]}  h3 {[%clk 0:00:20]} 46. Bg1 {[%clk 0:00:04]}  Kg2 {[%clk 0:00:19]} 0-1


[Site "https://www.chess.com"]

[Event "Titled Tuesday Blitz May 24 Early 2022"]
[White "Prokofiev, Valentyn"]
[Black "Bifulco, Michel"]
[WhiteFideId "14160161"]
[BlackFideId "828580"]
[WhiteElo "2174"]
[BlackElo "2165"]
[Result "1-0"]
[Round "11"]
[TimeControl "180+1"]
[Date "2022.05.25"]
[WhiteClock "0:00:49"]
[BlackClock "0:00:04"]

1. d4 {[%clk 0:03:00]}  Nf6 {[%clk 0:02:59]} 2. c4 {[%clk 0:03:01]}  g6 {[%clk 0:02:59]} 3. Nc3 {[%clk 0:03:00]}  Bg7 {[%clk 0:03:00]} 4. e4 {[%clk 0:03:00]}  d6 {[%clk 0:03:00]} 5. Nf3 {[%clk 0:03:00]}  O-O {[%clk 0:03:01]} 6. Be2 {[%clk 0:03:01]}  e5 {[%clk 0:03:01]} 7. O-O {[%clk 0:03:02]}  Nc6 {[%clk 0:03:01]} 8. d5 {[%clk 0:03:02]}  Ne7 {[%clk 0:03:02]} 9. b4 {[%clk 0:03:02]}  a5 {[%clk 0:03:01]} 10. Ba3 {[%clk 0:03:03]}  axb4 {[%clk 0:02:59]} 11. Bxb4 {[%clk 0:03:04]}  b6 {[%clk 0:02:59]} 12. a4 {[%clk 0:03:03]}  Re8 {[%clk 0:02:57]} 13. Qb1 {[%clk 0:02:28]}  c5 {[%clk 0:02:47]} 14. Ba3 {[%clk 0:02:27]}  Nh5 {[%clk 0:02:29]} 15. Qb3 {[%clk 0:02:18]}  f5 {[%clk 0:02:27]} 16. Ng5 {[%clk 0:02:17]}  h6 {[%clk 0:02:23]} 17. Bxh5 {[%clk 0:02:16]}  hxg5 {[%clk 0:02:16]} 18. Bf3 {[%clk 0:02:14]}  g4 {[%clk 0:02:15]} 19. Be2 {[%clk 0:02:15]}  f4 {[%clk 0:02:10]} 20. Rfb1 {[%clk 0:02:12]}  Ra6 {[%clk 0:02:00]} 21. Bc1 {[%clk 0:02:11]}  Bd7 {[%clk 0:01:50]} 22. Bd2 {[%clk 0:01:58]}  Kf7 {[%clk 0:01:48]} 23. Nb5 {[%clk 0:01:52]}  Nc8 {[%clk 0:01:48]} 24. Qd1 {[%clk 0:01:47]}  Qh4 {[%clk 0:01:46]} 25. g3 {[%clk 0:01:47]}  Qh5 {[%clk 0:01:32]} 26. Nc7 {[%clk 0:01:45]}  Rh8 {[%clk 0:01:31]} 27. h4 {[%clk 0:01:46]}  g5 {[%clk 0:01:30]} 28. Nxa6 {[%clk 0:01:43]}  gxh4 {[%clk 0:01:31]} 29. gxf4 {[%clk 0:01:41]}  exf4 {[%clk 0:01:28]} 30. Bxf4 {[%clk 0:01:42]}  h3 {[%clk 0:01:11]} 31. Qd3 {[%clk 0:01:29]}  Bd4 {[%clk 0:00:40]} 32. Kh2 {[%clk 0:01:12]}  Bxf2 {[%clk 0:00:36]} 33. Rf1 {[%clk 0:01:12]}  Bd4 {[%clk 0:00:22]} 34. Be5+ {[%clk 0:01:05]}  Ke8 {[%clk 0:00:20]} 35. Bxd4 {[%clk 0:01:01]}  cxd4 {[%clk 0:00:20]} 36. Qg3 {[%clk 0:00:56]}  Qh7 {[%clk 0:00:04]} 37. Bd3 {[%clk 0:00:49]} 1-0


[Site "https://www.chess.com"]